[Event "Titled Tuesday Blitz October 11 Early 2022"]
[White "Dwilewicz, Katarzyna"]
[Black "Johnson, Ben"]
[WhiteFideId "1148486"]
[BlackFideId "2010917"]
[WhiteElo "2023"]
[BlackElo "2224"]
[Result "1-0"]
[Round "11"]
[TimeControl "180+1"]
[Date "2022.10.12"]
[WhiteClock "0:00:49"]
[BlackClock "0:00:03"]

1. e4 {[%clk 0:03:00]}  c5 {[%clk 0:02:59]} 2. Nc3 {[%clk 0:02:59]}  Nc6 {[%clk 0:02:59]} 3. Bb5 {[%clk 0:02:57]}  Nd4 {[%clk 0:02:57]} 4. Bc4 {[%clk 0:02:57]}  e6 {[%clk 0:02:56]} 5. Nf3 {[%clk 0:02:55]}  Ne7 {[%clk 0:02:50]} 6. O-O {[%clk 0:02:52]}  d5 {[%clk 0:02:44]} 7. exd5 {[%clk 0:02:51]}  exd5 {[%clk 0:02:45]} 8. Nxd4 {[%clk 0:02:42]}  dxc4 {[%clk 0:02:29]} 9. Nf3 {[%clk 0:02:37]}  Bg4 {[%clk 0:01:53]} 10. h3 {[%clk 0:02:35]}  Bh5 {[%clk 0:01:53]} 11. Qe2 {[%clk 0:02:34]}  a6 {[%clk 0:01:45]} 12. Qxc4 {[%clk 0:02:30]}  Bxf3 {[%clk 0:01:43]} 13. gxf3 {[%clk 0:02:31]}  Rc8 {[%clk 0:01:09]} 14. Re1 {[%clk 0:02:29]}  b5 {[%clk 0:01:06]} 15. Qe4 {[%clk 0:02:26]}  Qd6 {[%clk 0:01:03]} 16. d3 {[%clk 0:02:24]}  f6 {[%clk 0:00:45]} 17. Bf4 {[%clk 0:02:22]}  Qd7 {[%clk 0:00:42]} 18. Kg2 {[%clk 0:02:16]}  Kf7 {[%clk 0:00:32]} 19. Re2 {[%clk 0:02:03]}  g5 {[%clk 0:00:30]} 20. Bd2 {[%clk 0:01:56]}  Nf5 {[%clk 0:00:22]} 21. Rae1 {[%clk 0:01:42]}  Nh4+ {[%clk 0:00:21]} 22. Kh2 {[%clk 0:01:33]}  Bd6+ {[%clk 0:00:21]} 23. f4 {[%clk 0:01:33]}  Rce8 {[%clk 0:00:19]} 24. Qd5+ {[%clk 0:01:31]}  Kg7 {[%clk 0:00:16]} 25. Rxe8 {[%clk 0:01:27]}  Rxe8 {[%clk 0:00:08]} 26. Rxe8 {[%clk 0:01:26]}  Qxe8 {[%clk 0:00:05]} 27. Qxd6 {[%clk 0:01:16]}  Nf3+ {[%clk 0:00:05]} 28. Kg3 {[%clk 0:01:16]}  Nxd2 {[%clk 0:00:06]} 29. Nd5 {[%clk 0:01:07]}  Qf7 {[%clk 0:00:04]} 30. Qe7 {[%clk 0:00:57]}  gxf4+ {[%clk 0:00:04]} 31. Kxf4 {[%clk 0:00:56]}  Qxe7 {[%clk 0:00:01]} 32. Nxe7 {[%clk 0:00:57]}  Kf7 {[%clk 0:00:01]} 33. Nd5 {[%clk 0:00:52]}  Ke6 {[%clk 0:00:02]} 34. Nc7+ {[%clk 0:00:52]}  Kd6 {[%clk 0:00:02]} 35. Nxa6 {[%clk 0:00:53]}  c4 {[%clk 0:00:03]} 36. Ke3 {[%clk 0:00:49]} 1-0


[Site "https://www.chess.com"]

[Event "Titled Tuesday Blitz October 11 Early 2022"]
[White "Fernandez Hernandez, Gerardo"]
[Black "Haukenfrers, Dale"]
[WhiteFideId "2207400"]
[BlackFideId "2603780"]
[WhiteElo "2143"]
[BlackElo "1969"]
[Result "1-0"]
[Round "11"]
[TimeControl "180+1"]
[Date "2022.10.12"]
[WhiteClock "0:00:15"]
[BlackClock "0:00:56"]

1. e4 {[%clk 0:03:00]}  c6 {[%clk 0:03:00]} 2. Ne2 {[%clk 0:02:59]}  d6 {[%clk 0:03:01]} 3. d4 {[%clk 0:02:57]}  Nf6 {[%clk 0:03:02]} 4. Nbc3 {[%clk 0:02:56]}  Bd7 {[%clk 0:03:01]} 5. h3 {[%clk 0:02:56]}  e5 {[%clk 0:03:01]} 6. g4 {[%clk 0:02:55]}  h6 {[%clk 0:02:56]} 7. Bg2 {[%clk 0:02:54]}  Qc7 {[%clk 0:02:54]} 8. Be3 {[%clk 0:02:53]}  b5 {[%clk 0:02:50]} 9. Ng3 {[%clk 0:02:48]}  a6 {[%clk 0:02:46]} 10. O-O {[%clk 0:02:46]}  c5 {[%clk 0:02:42]} 11. d5 {[%clk 0:02:32]}  g6 {[%clk 0:02:42]} 12. Qd2 {[%clk 0:02:27]}  Bg7 {[%clk 0:02:41]} 13. a4 {[%clk 0:02:24]}  b4 {[%clk 0:02:40]} 14. Nce2 {[%clk 0:02:18]}  a5 {[%clk 0:02:40]} 15. f4 {[%clk 0:02:12]}  exf4 {[%clk 0:02:39]} 16. Bxf4 {[%clk 0:02:03]}  Ng8 {[%clk 0:02:34]} 17. e5 {[%clk 0:01:57]}  Na6 {[%clk 0:02:22]} 18. exd6 {[%clk 0:01:54]}  Qb6 {[%clk 0:02:19]} 19. Qe3+ {[%clk 0:01:50]}  Kf8 {[%clk 0:02:16]} 20. b3 {[%clk 0:01:28]}  Re8 {[%clk 0:02:15]} 21. Qf2 {[%clk 0:01:27]}  Qd8 {[%clk 0:01:58]} 22. Bg5 {[%clk 0:01:20]}  f6 {[%clk 0:01:55]} 23. Be3 {[%clk 0:01:11]}  Qc8 {[%clk 0:01:47]} 24. Rae1 {[%clk 0:01:09]}  c4 {[%clk 0:01:45]} 25. Nf4 {[%clk 0:01:04]}  Kf7 {[%clk 0:01:42]} 26. Be4 {[%clk 0:00:59]}  Bxg4 {[%clk 0:01:37]} 27. Bxg6+ {[%clk 0:00:56]}  Kf8 {[%clk 0:01:36]} 28. Bxe8 {[%clk 0:00:53]}  Qxe8 {[%clk 0:01:30]} 29. hxg4 {[%clk 0:00:50]}  Kf7 {[%clk 0:01:26]} 30. Nf5 {[%clk 0:00:35]}  c3 {[%clk 0:01:24]} 31. Bd4 {[%clk 0:00:33]}  Qd7 {[%clk 0:01:19]} 32. Ne6 {[%clk 0:00:28]}  h5 {[%clk 0:01:13]} 33. Nfxg7 {[%clk 0:00:27]}  hxg4 {[%clk 0:01:11]} 34. Bxf6 {[%clk 0:00:27]}  Kg6 {[%clk 0:01:09]} 35. Qf5+ {[%clk 0:00:23]}  Kf7 {[%clk 0:01:09]} 36. Be5+ {[%clk 0:00:20]}  Nf6 {[%clk 0:01:07]} 37. Qxf6+ {[%clk 0:00:21]}  Kg8 {[%clk 0:01:07]} 38. Qf8+ {[%clk 0:00:20]}  Kh7 {[%clk 0:01:07]} 39. Qf5+ {[%clk 0:00:20]}  Kg8 {[%clk 0:01:06]} 40. Nf8 {[%clk 0:00:16]}  Nc5 {[%clk 0:01:02]} 41. Nxd7 {[%clk 0:00:15]}  Nxd7 {[%clk 0:00:59]} 42. Qxd7 {[%clk 0:00:15]}  g3 {[%clk 0:01:00]} 43. Qg4 {[%clk 0:00:15]}  g2 {[%clk 0:00:59]} 44. Qxg2 {[%clk 0:00:15]}  Rh6 {[%clk 0:00:57]} 45. Ne6+ {[%clk 0:00:15]}  Kh7 {[%clk 0:00:56]} 46. Qg7# {[%clk 0:00:15]} 1-0


[Site "https://www.chess.com"]

[Event "Titled Tuesday Blitz October 11 Early 2022"]
[White "Hansen, Eric"]
[Black "Aloma Vidal, Robert"]
[WhiteFideId "2606771"]
[BlackFideId "2260409"]
[WhiteElo "2568"]
[BlackElo "2435"]
[Result "1-0"]
[Round "11"]
[TimeControl "180+1"]
[Date "2022.10.11"]
[WhiteClock "0:00:12"]
[BlackClock "0:00:05"]

1. d4 {[%clk 0:03:00]}  d5 {[%clk 0:03:00]} 2. c4 {[%clk 0:02:59]}  c6 {[%clk 0:03:00]} 3. Nc3 {[%clk 0:02:59]}  Nf6 {[%clk 0:03:01]} 4. Nf3 {[%clk 0:03:00]}  e6 {[%clk 0:03:01]} 5. e3 {[%clk 0:03:00]}  Nbd7 {[%clk 0:03:01]} 6. Qc2 {[%clk 0:02:55]}  a5 {[%clk 0:02:56]} 7. Bd3 {[%clk 0:02:54]}  dxc4 {[%clk 0:02:49]} 8. Bxc4 {[%clk 0:02:54]}  b5 {[%clk 0:02:49]} 9. Bd3 {[%clk 0:02:54]}  Bb7 {[%clk 0:02:46]} 10. e4 {[%clk 0:02:46]}  b4 {[%clk 0:02:32]} 11. Na4 {[%clk 0:02:46]}  Rc8 {[%clk 0:02:18]} 12. e5 {[%clk 0:02:32]}  Nd5 {[%clk 0:02:15]} 13. O-O {[%clk 0:02:21]}  c5 {[%clk 0:02:07]} 14. Bg5 {[%clk 0:02:17]}  Be7 {[%clk 0:02:06]} 15. Bxe7 {[%clk 0:02:17]}  Qxe7 {[%clk 0:02:06]} 16. Bb5 {[%clk 0:02:17]}  cxd4 {[%clk 0:01:33]} 17. Qe4 {[%clk 0:02:15]}  O-O {[%clk 0:01:29]} 18. Rac1 {[%clk 0:01:35]}  Nc5 {[%clk 0:01:23]} 19. Qxd4 {[%clk 0:01:33]}  Nxa4 {[%clk 0:01:19]} 20. Bxa4 {[%clk 0:01:33]}  h6 {[%clk 0:01:15]} 21. h4 {[%clk 0:01:25]}  Rfd8 {[%clk 0:01:14]} 22. Rxc8 {[%clk 0:01:13]}  Rxc8 {[%clk 0:01:11]} 23. Qa7 {[%clk 0:00:59]}  Qc7 {[%clk 0:01:10]} 24. Bb3 {[%clk 0:00:56]}  Nf4 {[%clk 0:01:05]} 25. Qe3 {[%clk 0:00:54]}  Ng6 {[%clk 0:00:49]} 26. h5 {[%clk 0:00:53]}  Ne7 {[%clk 0:00:50]} 27. Nd4 {[%clk 0:00:53]}  Qc5 {[%clk 0:00:44]} 28. Nxe6 {[%clk 0:00:44]}  fxe6 {[%clk 0:00:19]} 29. Bxe6+ {[%clk 0:00:44]}  Kh8 {[%clk 0:00:17]} 30. Bxc8 {[%clk 0:00:43]}  Qxc8 {[%clk 0:00:17]} 31. f3 {[%clk 0:00:36]}  Qe6 {[%clk 0:00:14]} 32. Rd1 {[%clk 0:00:33]}  Bd5 {[%clk 0:00:13]} 33. b3 {[%clk 0:00:33]}  Nf5 {[%clk 0:00:12]} 34. Qc5 {[%clk 0:00:27]}  Ne7 {[%clk 0:00:10]} 35. Qd6 {[%clk 0:00:27]}  Qf7 {[%clk 0:00:11]} 36. e6 {[%clk 0:00:22]}  Bxe6 {[%clk 0:00:07]} 37. Re1 {[%clk 0:00:22]}  Nf5 {[%clk 0:00:04]} 38. Qxe6 {[%clk 0:00:19]}  Qxh5 {[%clk 0:00:05]} 39. Qc8+ {[%clk 0:00:12]}  Kh7 {[%clk 0:00:05]} 40. g4 {[%clk 0:00:13]}  Qh4 {[%clk 0:00:05]} 41. Qxf5+ {[%clk 0:00:13]}  g6 {[%clk 0:00:04]} 42. Qf7+ {[%clk 0:00:12]}  Kh8 {[%clk 0:00:05]} 43. Re8# {[%clk 0:00:12]} 1-0


[Site "https://www.chess.com"]

[Event "Titled Tuesday Blitz October 11 Early 2022"]
[White "Hartikainen, Jarmo"]
[Black "Skibbe, Willi"]
[WhiteFideId "503134"]
[BlackFideId "4682190"]
[WhiteElo "2164"]
[BlackElo "2333"]
[Result "0-1"]
[Round "11"]
[TimeControl "180+1"]
[Date "2022.10.12"]
[WhiteClock "0:00:09"]
[BlackClock "0:00:03"]

1. e4 {[%clk 0:03:00]}  e5 {[%clk 0:02:53]} 2. Nf3 {[%clk 0:03:00]}  Nc6 {[%clk 0:02:47]} 3. Bc4 {[%clk 0:02:59]}  Bc5 {[%clk 0:02:47]} 4. c3 {[%clk 0:02:59]}  Nf6 {[%clk 0:02:46]} 5. d4 {[%clk 0:02:59]}  exd4 {[%clk 0:02:47]} 6. b4 {[%clk 0:02:58]}  Bb6 {[%clk 0:02:46]} 7. e5 {[%clk 0:02:58]}  Ne4 {[%clk 0:02:33]} 8. b5 {[%clk 0:02:53]}  Na5 {[%clk 0:02:18]} 9. Bd5 {[%clk 0:02:50]}  Nxc3 {[%clk 0:02:18]} 10. Nxc3 {[%clk 0:02:49]}  dxc3 {[%clk 0:02:18]} 11. O-O {[%clk 0:02:45]}  O-O {[%clk 0:02:15]} 12. Bg5 {[%clk 0:02:45]}  Qe8 {[%clk 0:02:15]} 13. a4 {[%clk 0:02:20]}  c6 {[%clk 0:02:07]} 14. Ba2 {[%clk 0:02:14]}  d5 {[%clk 0:02:07]} 15. exd6 {[%clk 0:02:06]}  cxb5 {[%clk 0:02:05]} 16. axb5 {[%clk 0:01:56]}  Be6 {[%clk 0:01:48]} 17. Be7 {[%clk 0:01:52]}  Bxa2 {[%clk 0:01:46]} 18. Rxa2 {[%clk 0:01:52]}  Qxb5 {[%clk 0:01:45]} 19. Qc2 {[%clk 0:01:35]}  Rfe8 {[%clk 0:01:37]} 20. Qxc3 {[%clk 0:01:31]}  Qb3 {[%clk 0:01:34]} 21. Qa1 {[%clk 0:01:04]}  Qe6 {[%clk 0:01:14]} 22. Rxa5 {[%clk 0:01:00]}  Bxa5 {[%clk 0:01:15]} 23. Qxa5 {[%clk 0:01:00]}  a6 {[%clk 0:01:11]} 24. Re1 {[%clk 0:00:59]}  Qd7 {[%clk 0:01:08]} 25. Qh5 {[%clk 0:00:51]}  h6 {[%clk 0:01:05]} 26. h4 {[%clk 0:00:48]}  a5 {[%clk 0:01:01]} 27. Ne5 {[%clk 0:00:37]}  Qe6 {[%clk 0:00:57]} 28. Re3 {[%clk 0:00:36]}  a4 {[%clk 0:00:42]} 29. Rg3 {[%clk 0:00:30]}  a3 {[%clk 0:00:38]} 30. Ng4 {[%clk 0:00:26]}  Kh7 {[%clk 0:00:14]} 31. Bf6 {[%clk 0:00:08]}  a2 {[%clk 0:00:08]} 32. Ba1 {[%clk 0:00:07]}  Qe1+ {[%clk 0:00:06]} 33. Kh2 {[%clk 0:00:08]}  Qxa1 {[%clk 0:00:06]} 34. Qf5+ {[%clk 0:00:08]}  Kh8 {[%clk 0:00:07]} 35. Qxf7 {[%clk 0:00:08]}  Qd4 {[%clk 0:00:05]} 36. Nxh6 {[%clk 0:00:08]}  a1=Q {[%clk 0:00:03]} 37. Nf5 {[%clk 0:00:06]}  Qf6 {[%clk 0:00:03]} 38. Qh5+ {[%clk 0:00:06]}  Kg8 {[%clk 0:00:03]} 39. Nh6+ {[%clk 0:00:06]}  Kh7 {[%clk 0:00:02]} 40. Ng4+ {[%clk 0:00:06]}  Kg8 {[%clk 0:00:01]} 41. Nxf6+ {[%clk 0:00:07]}  Qxf6 {[%clk 0:00:01]} 42. Qg4 {[%clk 0:00:08]}  Qe5 {[%clk 0:00:01]} 43. h5 {[%clk 0:00:08]}  Rad8 {[%clk 0:00:01]} 44. Kh3 {[%clk 0:00:08]}  Rxd6 {[%clk 0:00:02]} 45. h6 {[%clk 0:00:09]}  Rxh6+ {[%clk 0:00:03]} 0-1


[Site "https://www.chess.com"]

[Event "Titled Tuesday Blitz October 11 Early 2022"]
[White "Horak, Martin"]
[Black "Urbina Perez, Juan Antonio"]
[WhiteFideId "367095"]
[BlackFideId "2217368"]
[WhiteElo "2091"]
[BlackElo "2197"]
[Result "1/2-1/2"]
[Round "11"]
[TimeControl "180+1"]
[Date "2022.10.12"]
[WhiteClock "0:00:10"]
[BlackClock "0:01:18"]

1. e4 {[%clk 0:03:00]}  c5 {[%clk 0:02:59]} 2. Nf3 {[%clk 0:03:00]}  e6 {[%clk 0:02:59]} 3. d4 {[%clk 0:03:01]}  cxd4 {[%clk 0:03:00]} 4. Nxd4 {[%clk 0:03:01]}  Bc5 {[%clk 0:03:00]} 5. Nb3 {[%clk 0:03:01]}  Bb6 {[%clk 0:03:00]} 6. Nc3 {[%clk 0:03:02]}  Ne7 {[%clk 0:03:00]} 7. Bd3 {[%clk 0:03:02]}  O-O {[%clk 0:03:00]} 8. Qe2 {[%clk 0:03:02]}  f5 {[%clk 0:03:00]} 9. O-O {[%clk 0:02:55]}  Nbc6 {[%clk 0:03:00]} 10. exf5 {[%clk 0:02:31]}  Nxf5 {[%clk 0:02:59]} 11. Bxf5 {[%clk 0:02:31]}  Rxf5 {[%clk 0:03:00]} 12. Be3 {[%clk 0:02:31]}  d5 {[%clk 0:02:51]} 13. Rad1 {[%clk 0:02:20]}  Bd7 {[%clk 0:02:50]} 14. Bxb6 {[%clk 0:02:13]}  Qxb6 {[%clk 0:02:50]} 15. Na4 {[%clk 0:02:12]}  Qc7 {[%clk 0:02:42]} 16. Nac5 {[%clk 0:02:11]}  Re8 {[%clk 0:02:27]} 17. c3 {[%clk 0:02:04]}  Bc8 {[%clk 0:02:20]} 18. Nd4 {[%clk 0:02:04]}  Rf6 {[%clk 0:02:17]} 19. Nxc6 {[%clk 0:01:37]}  bxc6 {[%clk 0:02:18]} 20. Nd3 {[%clk 0:01:36]}  e5 {[%clk 0:02:14]} 21. f4 {[%clk 0:01:35]}  Ba6 {[%clk 0:02:00]} 22. fxe5 {[%clk 0:01:32]}  Bxd3 {[%clk 0:02:00]} 23. Rxd3 {[%clk 0:01:13]}  Rxf1+ {[%clk 0:01:59]} 24. Kxf1 {[%clk 0:01:14]}  Rxe5 {[%clk 0:01:55]} 25. Re3 {[%clk 0:01:10]}  Rxe3 {[%clk 0:01:48]} 26. Qxe3 {[%clk 0:01:10]}  Qf7+ {[%clk 0:01:48]} 27. Ke2 {[%clk 0:00:54]}  h6 {[%clk 0:01:47]} 28. h3 {[%clk 0:00:50]}  Qg6 {[%clk 0:01:44]} 29. Kf2 {[%clk 0:00:36]}  Qf5+ {[%clk 0:01:40]} 30. Qf3 {[%clk 0:00:35]}  Qb1 {[%clk 0:01:38]} 31. Qe2 {[%clk 0:00:26]}  Qxa2 {[%clk 0:01:35]} 32. Qe6+ {[%clk 0:00:19]}  Kh8 {[%clk 0:01:33]} 33. Qc8+ {[%clk 0:00:17]}  Kh7 {[%clk 0:01:33]} 34. Qf5+ {[%clk 0:00:17]}  Kg8 {[%clk 0:01:32]} 35. Qe6+ {[%clk 0:00:16]}  Kf8 {[%clk 0:01:30]} 36. Qc8+ {[%clk 0:00:10]}  Kf7 {[%clk 0:01:30]} 37. Qd7+ {[%clk 0:00:09]}  Kf8 {[%clk 0:01:26]} 38. Qc8+ {[%clk 0:00:09]}  Ke7 {[%clk 0:01:23]} 39. Qc7+ {[%clk 0:00:09]}  Kf8 {[%clk 0:01:18]} 40. Qc8+ {[%clk 0:00:10]} 1/2-1/2


[Site "https://www.chess.com"]

[Event "Titled Tuesday Blitz October 11 Early 2022"]
[White "Ibarra Jerez, Jose Carlos"]
[Black "Carlsen, Magnus"]
[WhiteFideId "2226332"]
[BlackFideId "1503014"]
[WhiteElo "2627"]
[BlackElo "2830"]
[Result "0-1"]
[Round "11"]
[TimeControl "180+1"]
[Date "2022.10.11"]
[WhiteClock "0:00:02"]
[BlackClock "0:00:13"]

1. e4 {[%clk 0:03:00]}  g5 {[%clk 0:02:59]} 2. d4 {[%clk 0:02:58]}  h6 {[%clk 0:02:59]} 3. c3 {[%clk 0:02:55]}  d6 {[%clk 0:02:57]} 4. f4 {[%clk 0:02:43]}  e5 {[%clk 0:02:49]} 5. dxe5 {[%clk 0:02:35]}  dxe5 {[%clk 0:02:49]} 6. Qxd8+ {[%clk 0:02:34]}  Kxd8 {[%clk 0:02:50]} 7. fxg5 {[%clk 0:02:31]}  hxg5 {[%clk 0:02:50]} 8. Bxg5+ {[%clk 0:02:31]}  f6 {[%clk 0:02:51]} 9. Be3 {[%clk 0:02:23]}  Bh6 {[%clk 0:02:51]} 10. Bxh6 {[%clk 0:02:19]}  Nxh6 {[%clk 0:02:52]} 11. Nd2 {[%clk 0:02:19]}  Ke7 {[%clk 0:02:52]} 12. Ngf3 {[%clk 0:02:19]}  Nf7 {[%clk 0:02:52]} 13. O-O-O {[%clk 0:02:19]}  Nd7 {[%clk 0:02:50]} 14. g3 {[%clk 0:02:15]}  Nc5 {[%clk 0:02:33]} 15. Nh4 {[%clk 0:02:12]}  Rh6 {[%clk 0:02:27]} 16. b4 {[%clk 0:02:12]}  Na4 {[%clk 0:02:27]} 17. Kc2 {[%clk 0:02:09]}  a5 {[%clk 0:02:27]} 18. a3 {[%clk 0:02:06]}  Nd6 {[%clk 0:02:24]} 19. Bd3 {[%clk 0:02:03]}  Be6 {[%clk 0:02:22]} 20. Rhf1 {[%clk 0:01:58]}  c5 {[%clk 0:02:20]} 21. bxc5 {[%clk 0:01:43]}  Nxc5 {[%clk 0:02:18]} 22. Rb1 {[%clk 0:01:44]}  Rxh4 {[%clk 0:02:13]} 23. gxh4 {[%clk 0:01:43]}  Rh8 {[%clk 0:02:13]} 24. Nf3 {[%clk 0:01:13]}  Bd7 {[%clk 0:02:13]} 25. Rg1 {[%clk 0:01:09]}  Bc6 {[%clk 0:02:06]} 26. Rg7+ {[%clk 0:01:05]}  Ke6 {[%clk 0:02:04]} 27. Rbg1 {[%clk 0:00:52]}  Nxd3 {[%clk 0:02:03]} 28. Kxd3 {[%clk 0:00:50]}  Bxe4+ {[%clk 0:02:04]} 29. Ke2 {[%clk 0:00:51]}  Bxf3+ {[%clk 0:02:00]} 30. Kxf3 {[%clk 0:00:51]}  Rxh4 {[%clk 0:02:01]} 31. R1g2 {[%clk 0:00:47]}  Ra4 {[%clk 0:01:58]} 32. Rc7 {[%clk 0:00:39]}  Nf5 {[%clk 0:01:49]} 33. Rb2 {[%clk 0:00:36]}  Nd6 {[%clk 0:01:40]} 34. Rb6 {[%clk 0:00:36]}  Rxa3 {[%clk 0:01:35]} 35. h4 {[%clk 0:00:37]}  a4 {[%clk 0:01:29]} 36. h5 {[%clk 0:00:37]}  Rb3 {[%clk 0:01:28]} 37. Rcxb7 {[%clk 0:00:25]}  Rxc3+ {[%clk 0:01:21]} 38. Kg2 {[%clk 0:00:25]}  Rc2+ {[%clk 0:01:14]} 39. Kg1 {[%clk 0:00:25]}  a3 {[%clk 0:01:08]} 40. Ra7 {[%clk 0:00:25]}  a2 {[%clk 0:00:20]} 41. Rba6 {[%clk 0:00:25]}  Kf5 {[%clk 0:00:17]} 42. Rxa2 {[%clk 0:00:23]}  Rc1+ {[%clk 0:00:18]} 43. Kg2 {[%clk 0:00:23]}  Ne4 {[%clk 0:00:13]} 44. h6 {[%clk 0:00:23]}  Rc8 {[%clk 0:00:13]} 45. Ra8 {[%clk 0:00:22]}  Rxa8 {[%clk 0:00:13]} 46. Rxa8 {[%clk 0:00:22]}  Kg6 {[%clk 0:00:14]} 47. Rh8 {[%clk 0:00:22]}  Ng5 {[%clk 0:00:14]} 48. Kg3 {[%clk 0:00:20]}  Nf7 {[%clk 0:00:14]} 49. Rg8+ {[%clk 0:00:17]}  Kxh6 {[%clk 0:00:14]} 50. Kg4 {[%clk 0:00:14]}  Kh7 {[%clk 0:00:14]} 51. Ra8 {[%clk 0:00:14]}  Nh6+ {[%clk 0:00:14]} 52. Kh5 {[%clk 0:00:14]}  Nf5 {[%clk 0:00:15]} 53. Ra7+ {[%clk 0:00:14]}  Ng7+ {[%clk 0:00:15]} 54. Kg4 {[%clk 0:00:13]}  Kg6 {[%clk 0:00:16]} 55. Re7 {[%clk 0:00:12]}  f5+ {[%clk 0:00:16]} 56. Kf3 {[%clk 0:00:11]}  Kf6 {[%clk 0:00:17]} 57. Ra7 {[%clk 0:00:11]}  Nh5 {[%clk 0:00:16]} 58. Ra8 {[%clk 0:00:10]}  Ng7 {[%clk 0:00:15]} 59. Rf8+ {[%clk 0:00:09]}  Ke7 {[%clk 0:00:14]} 60. Ra8 {[%clk 0:00:09]}  Ne6 {[%clk 0:00:15]} 61. Ra5 {[%clk 0:00:08]}  Kf6 {[%clk 0:00:14]} 62. Ke3 {[%clk 0:00:09]}  Ng5 {[%clk 0:00:13]} 63. Ra4 {[%clk 0:00:07]}  Kg6 {[%clk 0:00:13]} 64. Rh4 {[%clk 0:00:06]}  Nf7 {[%clk 0:00:12]} 65. Ra4 {[%clk 0:00:07]}  Kg5 {[%clk 0:00:12]} 66. Ra8 {[%clk 0:00:06]}  Nh6 {[%clk 0:00:12]} 67. Ra1 {[%clk 0:00:05]}  Ng4+ {[%clk 0:00:12]} 68. Kd3 {[%clk 0:00:04]}  e4+ {[%clk 0:00:13]} 69. Kd4 {[%clk 0:00:05]}  Nh2 {[%clk 0:00:10]} 70. Ke5 {[%clk 0:00:04]}  Nf3+ {[%clk 0:00:10]} 71. Ke6 {[%clk 0:00:02]}  Kf4 {[%clk 0:00:11]} 72. Ra5 {[%clk 0:00:02]}  Nd4+ {[%clk 0:00:10]} 73. Kf6 {[%clk 0:00:02]}  e3 {[%clk 0:00:10]} 74. Re5 {[%clk 0:00:03]}  e2 {[%clk 0:00:10]} 75. Re8 {[%clk 0:00:03]}  Kf3 {[%clk 0:00:08]} 76. Kg5 {[%clk 0:00:02]}  f4 {[%clk 0:00:08]} 77. Re7 {[%clk 0:00:01]}  Kg3 {[%clk 0:00:09]} 78. Re4 {[%clk 0:00:01]}  e1=Q {[%clk 0:00:08]} 79. Rxe1 {[%clk 0:00:01]}  Nf3+ {[%clk 0:00:09]} 80. Kf5 {[%clk 0:00:01]}  Nxe1 {[%clk 0:00:10]} 81. Ke4 {[%clk 0:00:01]}  f3 {[%clk 0:00:11]} 82. Ke3 {[%clk 0:00:02]}  f2 {[%clk 0:00:12]} 83. Ke2 {[%clk 0:00:02]}  Kg2 {[%clk 0:00:13]} 0-1


[Site "https://www.chess.com"]

[Event "Titled Tuesday Blitz October 11 Early 2022"]
[White "Ismayil, Malak"]
[Black "Blokhin, Sofia"]
[WhiteFideId "13412604"]
[BlackFideId "4508190"]
[WhiteElo "1879"]
[BlackElo "2005"]
[Result "1-0"]
[Round "11"]
[TimeControl "180+1"]
[Date "2022.10.12"]
[WhiteClock "0:00:56"]
[BlackClock "0:00:09"]

1. e4 {[%clk 0:03:00]}  c5 {[%clk 0:02:59]} 2. Nf3 {[%clk 0:02:57]}  Nc6 {[%clk 0:02:57]} 3. Bb5 {[%clk 0:02:52]}  d6 {[%clk 0:02:56]} 4. Bxc6+ {[%clk 0:02:52]}  bxc6 {[%clk 0:02:56]} 5. O-O {[%clk 0:02:53]}  e5 {[%clk 0:02:54]} 6. Re1 {[%clk 0:02:52]}  Nf6 {[%clk 0:02:52]} 7. c3 {[%clk 0:02:53]}  Bg4 {[%clk 0:02:47]} 8. h3 {[%clk 0:02:53]}  Bh5 {[%clk 0:02:44]} 9. d4 {[%clk 0:02:52]}  cxd4 {[%clk 0:02:41]} 10. cxd4 {[%clk 0:02:53]}  Bxf3 {[%clk 0:02:36]} 11. gxf3 {[%clk 0:02:51]}  Qc7 {[%clk 0:02:29]} 12. Bg5 {[%clk 0:02:44]}  Be7 {[%clk 0:02:28]} 13. Nc3 {[%clk 0:02:41]}  h6 {[%clk 0:02:26]} 14. Bxf6 {[%clk 0:02:34]}  Bxf6 {[%clk 0:02:25]} 15. d5 {[%clk 0:02:35]}  c5 {[%clk 0:02:21]} 16. Rc1 {[%clk 0:02:29]}  O-O {[%clk 0:02:16]} 17. Kh1 {[%clk 0:02:27]}  Qd7 {[%clk 0:02:15]} 18. Kg2 {[%clk 0:02:23]}  Bg5 {[%clk 0:02:14]} 19. Rc2 {[%clk 0:02:20]}  f5 {[%clk 0:02:08]} 20. Ne2 {[%clk 0:02:19]}  fxe4 {[%clk 0:02:07]} 21. fxe4 {[%clk 0:02:20]}  Qf7 {[%clk 0:01:58]} 22. Ng3 {[%clk 0:02:08]}  Qf4 {[%clk 0:01:55]} 23. Qg4 {[%clk 0:02:04]}  Qxg4 {[%clk 0:01:46]} 24. hxg4 {[%clk 0:02:05]}  g6 {[%clk 0:01:43]} 25. f3 {[%clk 0:02:02]}  Rab8 {[%clk 0:01:36]} 26. b3 {[%clk 0:02:01]}  Rf7 {[%clk 0:01:33]} 27. Rf1 {[%clk 0:01:53]}  Bf4 {[%clk 0:01:29]} 28. Ne2 {[%clk 0:01:53]}  Be3 {[%clk 0:01:28]} 29. Rc4 {[%clk 0:01:44]}  a5 {[%clk 0:01:22]} 30. Nc3 {[%clk 0:01:39]}  Bd4 {[%clk 0:01:16]} 31. Nb1 {[%clk 0:01:36]}  Rb4 {[%clk 0:01:10]} 32. Nd2 {[%clk 0:01:35]}  a4 {[%clk 0:01:03]} 33. Rxb4 {[%clk 0:01:31]}  cxb4 {[%clk 0:01:03]} 34. Nc4 {[%clk 0:01:30]}  axb3 {[%clk 0:00:50]} 35. axb3 {[%clk 0:01:31]}  Bc5 {[%clk 0:00:48]} 36. Ra1 {[%clk 0:01:29]}  Kg7 {[%clk 0:00:47]} 37. Ra6 {[%clk 0:01:27]}  Rd7 {[%clk 0:00:44]} 38. Rc6 {[%clk 0:01:08]}  Kh7 {[%clk 0:00:39]} 39. Nxe5 {[%clk 0:01:06]}  Ra7 {[%clk 0:00:32]} 40. Nd3 {[%clk 0:01:02]}  Ra2+ {[%clk 0:00:29]} 41. Kh3 {[%clk 0:01:00]}  Rb2 {[%clk 0:00:12]} 42. Nxc5 {[%clk 0:00:56]}  dxc5 {[%clk 0:00:13]} 43. Rxc5 {[%clk 0:00:57]}  Rxb3 {[%clk 0:00:13]} 44. d6 {[%clk 0:00:57]}  Rd3 {[%clk 0:00:13]} 45. Rc7+ {[%clk 0:00:54]}  Kg8 {[%clk 0:00:13]} 46. d7 {[%clk 0:00:55]}  b3 {[%clk 0:00:09]} 47. Rc8+ {[%clk 0:00:54]}  Kf7 {[%clk 0:00:09]} 48. d8=Q {[%clk 0:00:55]}  Rxd8 {[%clk 0:00:09]} 49. Rxd8 {[%clk 0:00:56]}  b2 {[%clk 0:00:09]} 50. Rb8 {[%clk 0:00:56]} 1-0


[Site "https://www.chess.com"]